[Event "Titled Tuesday Blitz May 24 Late 2022"]
[White "Kruckenhauser, Arthur"]
[Black "Avramidou, Anastasia"]
[WhiteFideId "1642812"]
[BlackFideId "4239873"]
[WhiteElo "2243"]
[BlackElo "2183"]
[Result "0-1"]
[Round "10"]
[TimeControl "180+1"]
[Date "2022.05.24"]
[WhiteClock "0:01:04"]
[BlackClock "0:00:25"]

1. Nf3 {[%clk 0:03:00]}  Nf6 {[%clk 0:02:47]} 2. c4 {[%clk 0:02:59]}  g6 {[%clk 0:02:48]} 3. Nc3 {[%clk 0:02:57]}  Bg7 {[%clk 0:02:48]} 4. e4 {[%clk 0:02:56]}  O-O {[%clk 0:02:48]} 5. d4 {[%clk 0:02:56]}  d6 {[%clk 0:02:48]} 6. Be2 {[%clk 0:02:56]}  Nc6 {[%clk 0:02:48]} 7. O-O {[%clk 0:02:56]}  e5 {[%clk 0:02:49]} 8. d5 {[%clk 0:02:56]}  Ne7 {[%clk 0:02:49]} 9. b4 {[%clk 0:02:55]}  Nh5 {[%clk 0:02:49]} 10. g3 {[%clk 0:02:46]}  f5 {[%clk 0:02:48]} 11. Ng5 {[%clk 0:02:45]}  Nf6 {[%clk 0:02:46]} 12. c5 {[%clk 0:02:42]}  fxe4 {[%clk 0:02:43]} 13. Ngxe4 {[%clk 0:02:42]}  Nxe4 {[%clk 0:02:43]} 14. Nxe4 {[%clk 0:02:43]}  Bf5 {[%clk 0:02:43]} 15. Bf3 {[%clk 0:02:43]}  Qd7 {[%clk 0:02:32]} 16. Bg5 {[%clk 0:02:36]}  Rf7 {[%clk 0:02:25]} 17. Bg2 {[%clk 0:02:31]}  Raf8 {[%clk 0:02:22]} 18. Nc3 {[%clk 0:02:24]}  h6 {[%clk 0:02:11]} 19. Be3 {[%clk 0:02:19]}  Bh3 {[%clk 0:02:04]} 20. Qd2 {[%clk 0:02:18]}  Bxg2 {[%clk 0:02:02]} 21. Kxg2 {[%clk 0:02:19]}  Nf5 {[%clk 0:02:03]} 22. Ne4 {[%clk 0:02:16]}  Nd4 {[%clk 0:01:39]} 23. Qd3 {[%clk 0:01:57]}  Qf5 {[%clk 0:01:31]} 24. f4 {[%clk 0:01:51]}  exf4 {[%clk 0:00:35]} 25. Rxf4 {[%clk 0:01:42]}  Qxd5 {[%clk 0:00:33]} 26. Raf1 {[%clk 0:01:29]}  Rxf4 {[%clk 0:00:30]} 27. Rxf4 {[%clk 0:01:28]}  Rxf4 {[%clk 0:00:30]} 28. gxf4 {[%clk 0:01:24]}  dxc5 {[%clk 0:00:28]} 29. bxc5 {[%clk 0:01:19]}  c6 {[%clk 0:00:25]} 30. Kf1 {[%clk 0:01:04]} 0-1


[Site "https://www.chess.com"]

[Event "Titled Tuesday Blitz May 24 Late 2022"]
[White "Larino Nieto, David"]
[Black "Szente Varga, Fruzsina"]
[WhiteFideId "2256444"]
[BlackFideId "712264"]
[WhiteElo "2532"]
[BlackElo "1994"]
[Result "1-0"]
[Round "10"]
[TimeControl "180+1"]
[Date "2022.05.24"]
[WhiteClock "0:00:50"]
[BlackClock "0:00:16"]

1. e4 {[%clk 0:03:00]}  e5 {[%clk 0:02:58]} 2. Nf3 {[%clk 0:02:55]}  Nc6 {[%clk 0:02:58]} 3. Bb5 {[%clk 0:02:53]}  a6 {[%clk 0:02:57]} 4. Bxc6 {[%clk 0:02:51]}  dxc6 {[%clk 0:02:58]} 5. O-O {[%clk 0:02:52]}  f6 {[%clk 0:02:58]} 6. d4 {[%clk 0:02:51]}  Bg4 {[%clk 0:02:57]} 7. dxe5 {[%clk 0:02:46]}  Qxd1 {[%clk 0:02:56]} 8. Rxd1 {[%clk 0:02:46]}  Bxf3 {[%clk 0:02:52]} 9. gxf3 {[%clk 0:02:47]}  fxe5 {[%clk 0:02:52]} 10. f4 {[%clk 0:02:46]}  Bd6 {[%clk 0:02:40]} 11. Nd2 {[%clk 0:02:13]}  Nf6 {[%clk 0:02:32]} 12. fxe5 {[%clk 0:02:13]}  Bxe5 {[%clk 0:02:32]} 13. Nf3 {[%clk 0:02:12]}  Nd7 {[%clk 0:02:11]} 14. Rxd7 {[%clk 0:02:09]}  Kxd7 {[%clk 0:02:12]} 15. Nxe5+ {[%clk 0:02:08]}  Ke6 {[%clk 0:02:06]} 16. Nd3 {[%clk 0:02:07]}  b6 {[%clk 0:02:04]} 17. b3 {[%clk 0:02:06]}  Rhe8 {[%clk 0:02:02]} 18. f4 {[%clk 0:02:02]}  g6 {[%clk 0:01:59]} 19. Kf2 {[%clk 0:02:01]}  Rf8 {[%clk 0:01:54]} 20. Kf3 {[%clk 0:02:00]}  a5 {[%clk 0:01:52]} 21. a4 {[%clk 0:01:59]}  Rad8 {[%clk 0:01:47]} 22. h4 {[%clk 0:01:58]}  c5 {[%clk 0:01:42]} 23. Bb2 {[%clk 0:01:57]}  Rd7 {[%clk 0:01:37]} 24. Ke3 {[%clk 0:01:54]}  c6 {[%clk 0:01:31]} 25. Rg1 {[%clk 0:01:53]}  Rfd8 {[%clk 0:01:30]} 26. Rg5 {[%clk 0:01:52]}  Kf7 {[%clk 0:01:28]} 27. Ne5+ {[%clk 0:01:49]}  Ke6 {[%clk 0:01:25]} 28. Nxd7 {[%clk 0:01:50]}  Rxd7 {[%clk 0:01:25]} 29. Rg1 {[%clk 0:01:49]}  Rd8 {[%clk 0:01:16]} 30. Ke2 {[%clk 0:01:44]}  Rf8 {[%clk 0:01:14]} 31. Be5 {[%clk 0:01:42]}  Re8 {[%clk 0:01:05]} 32. Rd1 {[%clk 0:01:40]}  Rc8 {[%clk 0:01:02]} 33. Rd6+ {[%clk 0:01:38]}  Ke7 {[%clk 0:01:03]} 34. c4 {[%clk 0:01:35]}  b5 {[%clk 0:00:47]} 35. h5 {[%clk 0:01:31]}  bxa4 {[%clk 0:00:42]} 36. bxa4 {[%clk 0:01:30]}  gxh5 {[%clk 0:00:41]} 37. Rh6 {[%clk 0:01:28]}  Rg8 {[%clk 0:00:41]} 38. Rxh7+ {[%clk 0:01:26]}  Ke6 {[%clk 0:00:41]} 39. Rxh5 {[%clk 0:01:18]}  Rg2+ {[%clk 0:00:41]} 40. Kf3 {[%clk 0:01:17]}  Rc2 {[%clk 0:00:40]} 41. Rh6+ {[%clk 0:01:16]}  Kd7 {[%clk 0:00:40]} 42. Rd6+ {[%clk 0:01:16]}  Ke7 {[%clk 0:00:40]} 43. Rxc6 {[%clk 0:01:15]}  Rxc4 {[%clk 0:00:40]} 44. f5 {[%clk 0:01:15]}  Rxa4 {[%clk 0:00:35]} 45. Rxc5 {[%clk 0:01:11]}  Ra3+ {[%clk 0:00:35]} 46. Kf4 {[%clk 0:01:11]}  a4 {[%clk 0:00:35]} 47. Rc7+ {[%clk 0:01:11]}  Kd8 {[%clk 0:00:35]} 48. f6 {[%clk 0:01:11]}  Ra2 {[%clk 0:00:33]} 49. Bd6 {[%clk 0:01:08]}  a3 {[%clk 0:00:30]} 50. Ke5 {[%clk 0:01:07]}  Rf2 {[%clk 0:00:25]} 51. Ra7 {[%clk 0:01:04]}  a2 {[%clk 0:00:22]} 52. Ke6 {[%clk 0:01:03]}  Kc8 {[%clk 0:00:23]} 53. f7 {[%clk 0:00:58]}  Rxf7 {[%clk 0:00:18]} 54. Kxf7 {[%clk 0:00:55]}  Kd8 {[%clk 0:00:18]} 55. Ke6 {[%clk 0:00:53]}  Kc8 {[%clk 0:00:18]} 56. e5 {[%clk 0:00:50]}  a1=Q {[%clk 0:00:16]} 57. Rxa1 {[%clk 0:00:50]}  Kb7 {[%clk 0:00:16]} 1-0


[Site "https://www.chess.com"]

[Event "Titled Tuesday Blitz May 24 Late 2022"]
[White "Levine, David"]
[Black "Kopczynski, Michal"]
[WhiteFideId "2011611"]
[BlackFideId "1124200"]
[WhiteElo "2150"]
[BlackElo "2235"]
[Result "0-1"]
[Round "10"]
[TimeControl "180+1"]
[Date "2022.05.25"]
[WhiteClock "0:01:07"]
[BlackClock "0:01:50"]

1. d4 {[%clk 0:03:00]}  Nf6 {[%clk 0:03:00]} 2. c4 {[%clk 0:03:01]}  g6 {[%clk 0:03:00]} 3. g3 {[%clk 0:03:00]}  Bg7 {[%clk 0:03:01]} 4. Bg2 {[%clk 0:03:00]}  d6 {[%clk 0:03:01]} 5. Nf3 {[%clk 0:03:00]}  O-O {[%clk 0:03:02]} 6. O-O {[%clk 0:03:01]}  Nc6 {[%clk 0:03:02]} 7. Nc3 {[%clk 0:03:00]}  e5 {[%clk 0:03:02]} 8. dxe5 {[%clk 0:03:00]}  dxe5 {[%clk 0:03:01]} 9. Bg5 {[%clk 0:02:59]}  Qe8 {[%clk 0:02:59]} 10. Nd5 {[%clk 0:02:44]}  Nxd5 {[%clk 0:02:57]} 11. cxd5 {[%clk 0:02:43]}  Nd4 {[%clk 0:02:52]} 12. Be3 {[%clk 0:02:30]}  Nxf3+ {[%clk 0:02:06]} 13. Bxf3 {[%clk 0:02:29]}  Qb5 {[%clk 0:02:06]} 14. Qd2 {[%clk 0:01:54]}  Bf5 {[%clk 0:01:58]} 15. g4 {[%clk 0:01:46]}  e4 {[%clk 0:01:52]} 16. gxf5 {[%clk 0:01:40]}  exf3 {[%clk 0:01:53]} 17. exf3 {[%clk 0:01:31]}  Rad8 {[%clk 0:01:51]} 18. Qe2 {[%clk 0:01:07]}  Qxe2 {[%clk 0:01:50]} 0-1


[Site "https://www.chess.com"]

[Event "Titled Tuesday Blitz May 24 Late 2022"]
[White "Lutz, Igor Oscar"]
[Black "Curtis, John"]
[WhiteFideId "2110806"]
[BlackFideId "3200256"]
[WhiteElo "1744"]
[BlackElo "2203"]
[Result "0-1"]
[Round "10"]
[TimeControl "180+1"]
[Date "2022.05.25"]
[WhiteClock "0:00:59"]
[BlackClock "0:02:16"]

1. d4 {[%clk 0:02:54]}  Nf6 {[%clk 0:02:59]} 2. c4 {[%clk 0:02:54]}  e6 {[%clk 0:02:59]} 3. Nf3 {[%clk 0:02:54]}  Bb4+ {[%clk 0:02:59]} 4. Bd2 {[%clk 0:02:54]}  Qe7 {[%clk 0:02:59]} 5. g3 {[%clk 0:02:54]}  O-O {[%clk 0:02:55]} 6. Bg2 {[%clk 0:02:54]}  a5 {[%clk 0:02:54]} 7. O-O {[%clk 0:02:54]}  d6 {[%clk 0:02:54]} 8. Qc2 {[%clk 0:02:54]}  Bxd2 {[%clk 0:02:54]} 9. Nbxd2 {[%clk 0:02:55]}  e5 {[%clk 0:02:52]} 10. e4 {[%clk 0:02:42]}  Nc6 {[%clk 0:02:48]} 11. d5 {[%clk 0:02:42]}  Nb4 {[%clk 0:02:48]} 12. Qc3 {[%clk 0:02:31]}  c5 {[%clk 0:02:37]} 13. dxc6 {[%clk 0:01:47]}  Nxc6 {[%clk 0:02:32]} 14. Rfd1 {[%clk 0:01:46]}  Bg4 {[%clk 0:02:30]} 15. h3 {[%clk 0:01:37]}  Bxf3 {[%clk 0:02:30]} 16. Bxf3 {[%clk 0:01:33]}  Nd7 {[%clk 0:02:30]} 17. Nb3 {[%clk 0:01:23]}  a4 {[%clk 0:02:21]} 18. Nc1 {[%clk 0:01:14]}  Nd4 {[%clk 0:02:18]} 19. Bg2 {[%clk 0:01:14]}  Nc5 {[%clk 0:02:17]} 20. b3 {[%clk 0:00:59]}  axb3 {[%clk 0:02:17]} 21. Nxb3 {[%clk 0:00:59]}  Ne2+ {[%clk 0:02:16]} 0-1


[Site "https://www.chess.com"]

[Event "Titled Tuesday Blitz May 24 Late 2022"]
[White "Malka, Samuel"]
[Black "Roman, Rodrigo"]
[WhiteFideId "20643675"]
[BlackFideId "3701220"]
[WhiteElo "2483"]
[BlackElo "2001"]
[Result "0-1"]
[Round "10"]
[TimeControl "180+1"]
[Date "2022.05.25"]
[WhiteClock "0:00:10"]
[BlackClock "0:00:21"]

1. c4 {[%clk 0:02:54]}  c5 {[%clk 0:02:59]} 2. Nf3 {[%clk 0:02:49]}  d6 {[%clk 0:02:59]} 3. d4 {[%clk 0:02:48]}  cxd4 {[%clk 0:02:58]} 4. Nxd4 {[%clk 0:02:49]}  g6 {[%clk 0:02:57]} 5. Nc3 {[%clk 0:02:47]}  Nc6 {[%clk 0:02:58]} 6. g3 {[%clk 0:02:44]}  Bg7 {[%clk 0:02:57]} 7. Nc2 {[%clk 0:02:41]}  Bxc3+ {[%clk 0:02:55]} 8. bxc3 {[%clk 0:02:41]}  Be6 {[%clk 0:02:53]} 9. Ne3 {[%clk 0:02:41]}  Qa5 {[%clk 0:02:45]} 10. Qb3 {[%clk 0:02:26]}  Rb8 {[%clk 0:02:34]} 11. Bg2 {[%clk 0:02:25]}  Qa6 {[%clk 0:02:25]} 12. O-O {[%clk 0:02:19]}  Nf6 {[%clk 0:02:14]} 13. Qb5 {[%clk 0:02:20]}  Qxb5 {[%clk 0:02:08]} 14. cxb5 {[%clk 0:02:20]}  Na5 {[%clk 0:02:07]} 15. Ba3 {[%clk 0:02:15]}  Rc8 {[%clk 0:02:04]} 16. Bb4 {[%clk 0:02:15]}  b6 {[%clk 0:02:04]} 17. Bxa5 {[%clk 0:02:13]}  bxa5 {[%clk 0:02:04]} 18. c4 {[%clk 0:02:14]}  Nd7 {[%clk 0:02:03]} 19. Bc6 {[%clk 0:02:09]}  Kd8 {[%clk 0:02:02]} 20. Rfc1 {[%clk 0:02:00]}  Nb8 {[%clk 0:02:01]} 21. Bd5 {[%clk 0:01:58]}  Rc5 {[%clk 0:02:00]} 22. a4 {[%clk 0:01:53]}  Nd7 {[%clk 0:01:59]} 23. Rc2 {[%clk 0:01:48]}  Nb6 {[%clk 0:01:58]} 24. Bc6 {[%clk 0:01:26]}  Kc7 {[%clk 0:01:54]} 25. Rac1 {[%clk 0:01:10]}  h5 {[%clk 0:01:51]} 26. h4 {[%clk 0:01:00]}  f5 {[%clk 0:01:46]} 27. Ng2 {[%clk 0:00:56]}  Bf7 {[%clk 0:01:46]} 28. e4 {[%clk 0:00:50]}  fxe4 {[%clk 0:01:38]} 29. Bxe4 {[%clk 0:00:51]}  Rxc4 {[%clk 0:01:25]} 30. Nf4 {[%clk 0:00:49]}  Rxc2 {[%clk 0:01:16]} 31. Rxc2+ {[%clk 0:00:49]}  Kb8 {[%clk 0:01:09]} 32. Bxg6 {[%clk 0:00:45]}  Bb3 {[%clk 0:01:06]} 33. Re2 {[%clk 0:00:42]}  e5 {[%clk 0:01:06]} 34. Nxh5 {[%clk 0:00:41]}  Bd1 {[%clk 0:01:03]} 35. Rd2 {[%clk 0:00:30]}  Bxh5 {[%clk 0:01:02]} 36. Rxd6 {[%clk 0:00:24]}  Bf3 {[%clk 0:00:51]} 37. Rf6 {[%clk 0:00:20]}  e4 {[%clk 0:00:48]} 38. Re6 {[%clk 0:00:21]}  Rd8 {[%clk 0:00:42]} 39. Kh2 {[%clk 0:00:19]}  Rd2 {[%clk 0:00:39]} 40. g4 {[%clk 0:00:19]}  Rxf2+ {[%clk 0:00:39]} 41. Kg3 {[%clk 0:00:19]}  Rg2+ {[%clk 0:00:39]} 42. Kf4 {[%clk 0:00:20]}  Rxg4+ {[%clk 0:00:39]} 43. Ke3 {[%clk 0:00:20]}  Rxh4 {[%clk 0:00:38]} 44. Bf5 {[%clk 0:00:18]}  Nc4+ {[%clk 0:00:29]} 45. Kf2 {[%clk 0:00:15]}  Rh2+ {[%clk 0:00:28]} 46. Kg3 {[%clk 0:00:15]}  Rg2+ {[%clk 0:00:28]} 47. Kf4 {[%clk 0:00:15]}  Re2 {[%clk 0:00:22]} 48. Re8+ {[%clk 0:00:14]}  Kb7 {[%clk 0:00:21]} 49. Bc8+ {[%clk 0:00:13]}  Kb6 {[%clk 0:00:20]} 50. Ba6 {[%clk 0:00:11]}  Kc5 {[%clk 0:00:19]} 51. Rc8+ {[%clk 0:00:11]}  Kb4 {[%clk 0:00:17]} 52. Rxc4+ {[%clk 0:00:06]}  Kb3 {[%clk 0:00:13]} 53. b6 {[%clk 0:00:07]}  axb6 {[%clk 0:00:12]} 54. Rc8 {[%clk 0:00:07]}  Re1 {[%clk 0:00:11]} 55. Rd8 {[%clk 0:00:06]}  Kxa4 {[%clk 0:00:11]} 56. Bc4 {[%clk 0:00:06]}  Kb4 {[%clk 0:00:11]} 57. Rd4 {[%clk 0:00:06]}  Kc5 {[%clk 0:00:11]} 58. Rd5+ {[%clk 0:00:05]}  Kxc4 {[%clk 0:00:11]} 59. Rd6 {[%clk 0:00:06]}  b5 {[%clk 0:00:11]} 60. Rc6+ {[%clk 0:00:06]}  Kb4 {[%clk 0:00:12]} 61. Rd6 {[%clk 0:00:06]}  a4 {[%clk 0:00:12]} 62. Rd4+ {[%clk 0:00:05]}  Kb3 {[%clk 0:00:13]} 63. Rd2 {[%clk 0:00:03]}  b4 {[%clk 0:00:13]} 64. Rf2 {[%clk 0:00:03]}  a3 {[%clk 0:00:14]} 65. Ke5 {[%clk 0:00:03]}  a2 {[%clk 0:00:14]} 66. Kd4 {[%clk 0:00:04]}  a1=Q+ {[%clk 0:00:14]} 67. Kd5 {[%clk 0:00:05]}  e3+ {[%clk 0:00:14]} 68. Rxf3 {[%clk 0:00:05]}  Qd1+ {[%clk 0:00:12]} 69. Ke4 {[%clk 0:00:05]}  Qxf3+ {[%clk 0:00:13]} 70. Kxf3 {[%clk 0:00:06]}  Kc3 {[%clk 0:00:13]} 71. Kg2 {[%clk 0:00:06]}  Kd2 {[%clk 0:00:14]} 72. Kh2 {[%clk 0:00:06]}  b3 {[%clk 0:00:15]} 73. Kg2 {[%clk 0:00:07]}  b2 {[%clk 0:00:15]} 74. Kh2 {[%clk 0:00:07]}  b1=Q {[%clk 0:00:16]} 75. Kg2 {[%clk 0:00:08]}  Rg1+ {[%clk 0:00:17]} 76. Kh2 {[%clk 0:00:09]}  Rh1+ {[%clk 0:00:16]} 77. Kg2 {[%clk 0:00:08]}  Qf1+ {[%clk 0:00:16]} 78. Kg3 {[%clk 0:00:09]}  Rh3+ {[%clk 0:00:17]} 79. Kg4 {[%clk 0:00:09]}  Qf3+ {[%clk 0:00:18]} 80. Kg5 {[%clk 0:00:09]}  Rh5+ {[%clk 0:00:19]} 81. Kg6 {[%clk 0:00:09]}  Qf5+ {[%clk 0:00:19]} 82. Kg7 {[%clk 0:00:09]}  Rh7+ {[%clk 0:00:20]} 83. Kg8 {[%clk 0:00:10]}  Qf7# {[%clk 0:00:21]} 0-1


[Site "https://www.chess.com"]

[Event "Titled Tuesday Blitz May 24 Late 2022"]
[White "Maltsevskaya, Aleksandra"]
[Black "Moral Garcia, Serafin"]
[WhiteFideId "24174041"]
[BlackFideId "2201925"]
[WhiteElo "2235"]
[BlackElo "2228"]
[Result "0-1"]
[Round "10"]
[TimeControl "180+1"]
[Date "2022.05.24"]
[WhiteClock "0:00:02"]
[BlackClock "0:00:11"]

1. e4 {[%clk 0:03:00]}  c5 {[%clk 0:02:55]} 2. Nf3 {[%clk 0:03:01]}  e6 {[%clk 0:02:56]} 3. d4 {[%clk 0:03:01]}  cxd4 {[%clk 0:02:54]} 4. Nxd4 {[%clk 0:03:02]}  Nc6 {[%clk 0:02:54]} 5. Nc3 {[%clk 0:03:01]}  Qc7 {[%clk 0:02:54]} 6. f4 {[%clk 0:03:01]}  a6 {[%clk 0:02:51]} 7. Nxc6 {[%clk 0:03:01]}  Qxc6 {[%clk 0:02:49]} 8. Bd3 {[%clk 0:03:02]}  b5 {[%clk 0:02:39]} 9. Qe2 {[%clk 0:03:02]}  Bb7 {[%clk 0:02:37]} 10. Bd2 {[%clk 0:03:00]}  Nf6 {[%clk 0:02:36]} 11. a3 {[%clk 0:02:51]}  Bc5 {[%clk 0:02:31]} 12. O-O-O {[%clk 0:02:50]}  b4 {[%clk 0:02:29]} 13. axb4 {[%clk 0:02:46]}  Bxb4 {[%clk 0:02:29]} 14. Nd5 {[%clk 0:02:33]}  Bxd2+ {[%clk 0:02:26]} 15. Rxd2 {[%clk 0:02:34]}  Nxd5 {[%clk 0:02:24]} 16. exd5 {[%clk 0:02:34]}  Qxd5 {[%clk 0:02:20]} 17. Bc4 {[%clk 0:02:31]}  Qa5 {[%clk 0:02:17]} 18. Kb1 {[%clk 0:02:31]}  d5 {[%clk 0:02:15]} 19. Bb3 {[%clk 0:02:30]}  O-O {[%clk 0:02:14]} 20. f5 {[%clk 0:02:30]}  exf5 {[%clk 0:02:11]} 21. Rd3 {[%clk 0:02:31]}  Qb4 {[%clk 0:02:03]} 22. Rg3 {[%clk 0:02:26]}  g6 {[%clk 0:01:51]} 23. h4 {[%clk 0:02:24]}  Qf4 {[%clk 0:01:47]} 24. Qd3 {[%clk 0:02:04]}  d4 {[%clk 0:01:34]} 25. Rf1 {[%clk 0:01:26]}  Qxh4 {[%clk 0:01:32]} 26. Rh3 {[%clk 0:01:09]}  Qe4 {[%clk 0:01:29]} 27. Qd1 {[%clk 0:00:59]}  Qxg2 {[%clk 0:01:16]} 28. Rfh1 {[%clk 0:00:57]}  Qg4 {[%clk 0:00:55]} 29. Qc1 {[%clk 0:00:49]}  Bxh1 {[%clk 0:00:40]} 30. Qxh1 {[%clk 0:00:50]}  h5 {[%clk 0:00:37]} 31. Rh4 {[%clk 0:00:41]}  Qg5 {[%clk 0:00:36]} 32. Rxd4 {[%clk 0:00:36]}  Rad8 {[%clk 0:00:36]} 33. Rc4 {[%clk 0:00:31]}  Rd6 {[%clk 0:00:28]} 34. Rc3 {[%clk 0:00:24]}  Rfd8 {[%clk 0:00:26]} 35. Qb7 {[%clk 0:00:24]}  Qf6 {[%clk 0:00:19]} 36. Rc7 {[%clk 0:00:22]}  Rf8 {[%clk 0:00:19]} 37. Ka2 {[%clk 0:00:10]}  f4 {[%clk 0:00:19]} 38. Rc3 {[%clk 0:00:09]}  g5 {[%clk 0:00:16]} 39. Rh3 {[%clk 0:00:07]}  h4 {[%clk 0:00:16]} 40. Qf3 {[%clk 0:00:06]}  Qf5 {[%clk 0:00:15]} 41. Rh1 {[%clk 0:00:06]}  Rh6 {[%clk 0:00:14]} 42. Rg1 {[%clk 0:00:06]}  h3 {[%clk 0:00:14]} 43. Rg4 {[%clk 0:00:02]}  h2 {[%clk 0:00:13]} 44. Qg2 {[%clk 0:00:03]}  Rh5 {[%clk 0:00:12]} 45. c4 {[%clk 0:00:01]}  h1=Q {[%clk 0:00:12]} 46. Qc6 {[%clk 0:00:02]}  Qxc6 {[%clk 0:00:11]} 0-1


[Site "https://www.chess.com"]

[Event "Titled Tuesday Blitz May 24 Late 2022"]
[White "Mangialardo, Tiago Carvalho"]
[Black "Remolar Gallen, Jose"]
[WhiteFideId "2130718"]
[BlackFideId "2215187"]
[WhiteElo "2156"]
[BlackElo "2205"]
[Result "0-1"]
[Round "10"]
[TimeControl "180+1"]
[Date "2022.05.25"]
[WhiteClock "0:00:03"]
[BlackClock "0:01:06"]

1. e4 {[%clk 0:02:58]}  c5 {[%clk 0:02:59]} 2. Nf3 {[%clk 0:02:57]}  d6 {[%clk 0:03:00]} 3. d4 {[%clk 0:02:57]}  cxd4 {[%clk 0:03:01]} 4. Nxd4 {[%clk 0:02:58]}  Nf6 {[%clk 0:03:01]} 5. Nc3 {[%clk 0:02:58]}  a6 {[%clk 0:03:02]} 6. Be3 {[%clk 0:02:59]}  e5 {[%clk 0:03:02]} 7. Nf3 {[%clk 0:02:58]}  Be7 {[%clk 0:03:02]} 8. Be2 {[%clk 0:02:58]}  Nbd7 {[%clk 0:02:57]} 9. O-O {[%clk 0:02:58]}  O-O {[%clk 0:02:55]} 10. Qd2 {[%clk 0:02:57]}  b5 {[%clk 0:02:55]} 11. a3 {[%clk 0:02:56]}  Bb7 {[%clk 0:02:55]} 12. Bd3 {[%clk 0:02:50]}  Qc7 {[%clk 0:02:52]} 13. Rfe1 {[%clk 0:02:48]}  h6 {[%clk 0:02:50]} 14. Rad1 {[%clk 0:02:39]}  Nc5 {[%clk 0:02:48]} 15. Bxc5 {[%clk 0:02:26]}  dxc5 {[%clk 0:02:49]} 16. Nd5 {[%clk 0:01:17]}  Nxd5 {[%clk 0:02:34]} 17. exd5 {[%clk 0:01:18]}  Bxd5 {[%clk 0:02:34]} 18. Bh7+ {[%clk 0:01:18]}  Kh8 {[%clk 0:02:34]} 19. Qxd5 {[%clk 0:01:18]}  Kxh7 {[%clk 0:02:31]} 20. Qxe5 {[%clk 0:01:07]}  Qxe5 {[%clk 0:02:29]} 21. Rxe5 {[%clk 0:01:05]}  Bf6 {[%clk 0:02:28]} 22. Rxc5 {[%clk 0:01:00]}  Rad8 {[%clk 0:02:25]} 23. Rcd5 {[%clk 0:00:53]}  Rxd5 {[%clk 0:02:22]} 24. Rxd5 {[%clk 0:00:54]}  Bxb2 {[%clk 0:02:23]} 25. Rd3 {[%clk 0:00:54]}  Rc8 {[%clk 0:02:21]} 26. Ne1 {[%clk 0:00:51]}  Bc3 {[%clk 0:02:15]} 27. Kf1 {[%clk 0:00:51]}  Bxe1 {[%clk 0:02:15]} 28. Kxe1 {[%clk 0:00:51]}  Rxc2 {[%clk 0:02:15]} 29. Rd6 {[%clk 0:00:50]}  Ra2 {[%clk 0:02:09]} 30. Rxa6 {[%clk 0:00:50]}  b4 {[%clk 0:02:10]} 31. Rb6 {[%clk 0:00:47]}  bxa3 {[%clk 0:02:08]} 32. Ra6 {[%clk 0:00:37]}  h5 {[%clk 0:02:05]} 33. h4 {[%clk 0:00:36]}  f6 {[%clk 0:02:05]} 34. Kf1 {[%clk 0:00:19]}  Kg6 {[%clk 0:02:05]} 35. g3 {[%clk 0:00:20]}  Kf5 {[%clk 0:02:02]} 36. Ra4 {[%clk 0:00:20]}  Ke5 {[%clk 0:01:31]} 37. Ra5+ {[%clk 0:00:11]}  Kd4 {[%clk 0:01:31]} 38. Rxh5 {[%clk 0:00:11]}  Kc4 {[%clk 0:01:15]} 39. Ra5 {[%clk 0:00:07]}  Kb4 {[%clk 0:01:15]} 40. Ra8 {[%clk 0:00:08]}  Rb2 {[%clk 0:01:11]} 41. h5 {[%clk 0:00:04]}  a2 {[%clk 0:01:05]} 42. Ke1 {[%clk 0:00:01]}  Rb1+ {[%clk 0:01:05]} 43. Kd2 {[%clk 0:00:01]}  a1=Q {[%clk 0:01:05]} 44. Rb8+ {[%clk 0:00:01]}  Kc5 {[%clk 0:01:05]} 45. Rc8+ {[%clk 0:00:02]}  Kd6 {[%clk 0:01:05]} 46. Rd8+ {[%clk 0:00:03]}  Ke7 {[%clk 0:01:06]} 0-1


[Site "https://www.chess.com"]

[Event "Titled Tuesday Blitz May 24 Late 2022"]
[White "Matinian, Nikita"]
[Black "Peralta, Eduardo"]
[WhiteFideId "24129100"]
[BlackFideId "3700062"]
[WhiteElo "2422"]
[BlackElo "2125"]
[Result "1-0"]
[Round "10"]
[TimeControl "180+1"]
[Date "2022.05.24"]
[WhiteClock "0:00:10"]
[BlackClock "0:00:07"]

1. e4 {[%clk 0:03:00]}  c5 {[%clk 0:02:56]} 2. Nf3 {[%clk 0:03:00]}  Nc6 {[%clk 0:02:56]} 3. Bb5 {[%clk 0:03:00]}  g6 {[%clk 0:02:56]} 4. O-O {[%clk 0:03:00]}  Bg7 {[%clk 0:02:56]} 5. Re1 {[%clk 0:03:00]}  Nf6 {[%clk 0:02:56]} 6. e5 {[%clk 0:03:00]}  Nd5 {[%clk 0:02:55]} 7. Nc3 {[%clk 0:03:00]}  Nc7 {[%clk 0:02:53]} 8. Bxc6 {[%clk 0:02:59]}  bxc6 {[%clk 0:02:50]} 9. Ne4 {[%clk 0:02:59]}  Ne6 {[%clk 0:02:48]} 10. d3 {[%clk 0:02:57]}  O-O {[%clk 0:02:47]} 11. h4 {[%clk 0:02:57]}  d5 {[%clk 0:02:41]} 12. exd6 {[%clk 0:02:57]}  exd6 {[%clk 0:02:41]} 13. h5 {[%clk 0:02:58]}  d5 {[%clk 0:02:25]} 14. h6 {[%clk 0:02:56]}  Bh8 {[%clk 0:02:21]} 15. Ng3 {[%clk 0:02:46]}  Rb8 {[%clk 0:02:18]} 16. c3 {[%clk 0:02:45]}  Qc7 {[%clk 0:01:53]} 17. Qa4 {[%clk 0:02:35]}  c4 {[%clk 0:01:33]} 18. d4 {[%clk 0:02:18]}  c5 {[%clk 0:01:32]} 19. Ne2 {[%clk 0:01:53]}  Bd7 {[%clk 0:01:22]} 20. Qd1 {[%clk 0:01:51]}  cxd4 {[%clk 0:01:21]} 21. Nexd4 {[%clk 0:01:51]}  Nc5 {[%clk 0:01:21]} 22. Bg5 {[%clk 0:01:19]}  Nd3 {[%clk 0:01:20]} 23. Re7 {[%clk 0:01:18]}  Qd6 {[%clk 0:01:08]} 24. Re2 {[%clk 0:00:55]}  Bg4 {[%clk 0:01:06]} 25. b3 {[%clk 0:00:51]}  Rfe8 {[%clk 0:00:49]} 26. bxc4 {[%clk 0:00:46]}  dxc4 {[%clk 0:00:49]} 27. Rxe8+ {[%clk 0:00:46]}  Rxe8 {[%clk 0:00:48]} 28. Qa4 {[%clk 0:00:46]}  Rc8 {[%clk 0:00:24]} 29. Qa5 {[%clk 0:00:20]}  Bxf3 {[%clk 0:00:22]} 30. Nxf3 {[%clk 0:00:20]}  Rc5 {[%clk 0:00:20]} 31. Qxa7 {[%clk 0:00:16]}  Rc8 {[%clk 0:00:15]} 32. Bd2 {[%clk 0:00:12]}  Qe6 {[%clk 0:00:14]} 33. Rb1 {[%clk 0:00:11]}  Qe2 {[%clk 0:00:14]} 34. Rb8 {[%clk 0:00:10]}  Qxf2+ {[%clk 0:00:10]} 35. Qxf2 {[%clk 0:00:10]}  Nxf2 {[%clk 0:00:07]} 36. Rxc8# {[%clk 0:00:10]} 1-0


[Site "https://www.chess.com"]